[Event "Titled Tuesday Blitz August 08 Early 2023"]
[White "Vaibhav, Suri"]
[Black "Mishra, Manoj"]
[WhiteFideId "5045185"]
[BlackFideId "5006007"]
[WhiteElo "2719"]
[BlackElo "2244"]
[Result "1-0"]
[Round "8"]
[TimeControl "180+1"]
[Date "2023.08.08"]
[WhiteClock "0:00:54"]
[BlackClock "0:00:17"]
[Board "120"]

1. d4 {[%clk 0:03:00]}  Nf6 {[%clk 0:02:48]} 2. Nc3 {[%clk 0:03:01]}  d5 {[%clk 0:02:39]} 3. Bf4 {[%clk 0:03:00]}  Bf5 {[%clk 0:02:38]} 4. e3 {[%clk 0:02:59]}  a6 {[%clk 0:02:34]} 5. Be2 {[%clk 0:02:55]}  h6 {[%clk 0:02:26]} 6. g4 {[%clk 0:02:54]}  Bh7 {[%clk 0:02:25]} 7. h4 {[%clk 0:02:54]}  e6 {[%clk 0:02:24]} 8. g5 {[%clk 0:02:54]}  Ne4 {[%clk 0:02:20]} 9. gxh6 {[%clk 0:02:46]}  gxh6 {[%clk 0:02:15]} 10. Bd3 {[%clk 0:02:37]}  c5 {[%clk 0:02:07]} 11. Bxe4 {[%clk 0:02:21]}  dxe4 {[%clk 0:02:03]} 12. d5 {[%clk 0:02:20]}  Rg8 {[%clk 0:01:56]} 13. Nge2 {[%clk 0:02:07]}  Nd7 {[%clk 0:01:51]} 14. dxe6 {[%clk 0:01:43]}  fxe6 {[%clk 0:01:51]} 15. Qd2 {[%clk 0:01:29]}  Qb6 {[%clk 0:01:25]} 16. O-O-O {[%clk 0:01:23]}  O-O-O {[%clk 0:01:24]} 17. Na4 {[%clk 0:01:21]}  Qc6 {[%clk 0:01:18]} 18. Qa5 {[%clk 0:01:21]}  e5 {[%clk 0:01:06]} 19. Bxe5 {[%clk 0:01:18]}  b5 {[%clk 0:00:52]} 20. Rxd7 {[%clk 0:00:56]}  Rxd7 {[%clk 0:00:53]} 21. Nb6+ {[%clk 0:00:56]}  Kb7 {[%clk 0:00:53]} 22. Nxd7 {[%clk 0:00:56]}  Qxd7 {[%clk 0:00:53]} 23. Rd1 {[%clk 0:00:57]}  Qc6 {[%clk 0:00:48]} 24. Qd8 {[%clk 0:00:54]}  Bg7 {[%clk 0:00:17]} 25. Rd7+ {[%clk 0:00:54]}  Qxd7 {[%clk 0:00:16]} 26. Qxd7+ {[%clk 0:00:54]}  Kb6 {[%clk 0:00:17]} 27. Qc7# {[%clk 0:00:54]} 1-0


[Site "https://www.chess.com"]

[Event "Titled Tuesday Blitz August 08 Early 2023"]
[White "Tologon tegin, Semetei"]
[Black "Chudnovsky, Jacob"]
[WhiteFideId "13800574"]
[BlackFideId "2010046"]
[WhiteElo "2615"]
[BlackElo "2395"]
[Result "1-0"]
[Round "8"]
[TimeControl "180+1"]
[Date "2023.08.08"]
[WhiteClock "0:01:00"]
[BlackClock "0:00:00"]
[Board "126"]

1. e4 {[%clk 0:02:55]}  e5 {[%clk 0:02:58]} 2. Nf3 {[%clk 0:02:54]}  Nc6 {[%clk 0:02:58]} 3. Bb5 {[%clk 0:02:54]}  a6 {[%clk 0:02:57]} 4. Ba4 {[%clk 0:02:54]}  Nf6 {[%clk 0:02:57]} 5. d3 {[%clk 0:02:54]}  b5 {[%clk 0:02:56]} 6. Bb3 {[%clk 0:02:54]}  Be7 {[%clk 0:02:56]} 7. O-O {[%clk 0:02:53]}  O-O {[%clk 0:02:56]} 8. h3 {[%clk 0:02:48]}  d5 {[%clk 0:02:55]} 9. exd5 {[%clk 0:02:45]}  Nxd5 {[%clk 0:02:54]} 10. Re1 {[%clk 0:02:45]}  Qd6 {[%clk 0:02:53]} 11. Bd2 {[%clk 0:02:42]}  Nf4 {[%clk 0:02:48]} 12. Nc3 {[%clk 0:02:34]}  Qg6 {[%clk 0:02:39]} 13. Bxf4 {[%clk 0:02:32]}  exf4 {[%clk 0:02:40]} 14. Kh1 {[%clk 0:02:19]}  Bb7 {[%clk 0:02:34]} 15. Bd5 {[%clk 0:02:17]}  Bb4 {[%clk 0:02:24]} 16. Ne5 {[%clk 0:02:09]}  Nxe5 {[%clk 0:02:16]} 17. Bxb7 {[%clk 0:02:09]}  Bxc3 {[%clk 0:02:11]} 18. bxc3 {[%clk 0:02:08]}  Rab8 {[%clk 0:02:05]} 19. Be4 {[%clk 0:02:06]}  Qg5 {[%clk 0:02:00]} 20. a4 {[%clk 0:01:54]}  Rbe8 {[%clk 0:01:41]} 21. axb5 {[%clk 0:01:53]}  axb5 {[%clk 0:01:42]} 22. Ra5 {[%clk 0:01:49]}  c6 {[%clk 0:01:40]} 23. c4 {[%clk 0:01:46]}  f5 {[%clk 0:01:34]} 24. Bf3 {[%clk 0:01:38]}  Nxf3 {[%clk 0:01:32]} 25. Rxe8 {[%clk 0:01:38]}  Rxe8 {[%clk 0:01:30]} 26. Qxf3 {[%clk 0:01:38]}  bxc4 {[%clk 0:01:17]} 27. Qxc6 {[%clk 0:01:38]}  Re1+ {[%clk 0:01:11]} 28. Kh2 {[%clk 0:01:38]}  h5 {[%clk 0:01:04]} 29. Qxc4+ {[%clk 0:01:32]}  Kh7 {[%clk 0:01:04]} 30. Ra8 {[%clk 0:01:24]}  Qf6 {[%clk 0:00:12]} 31. Qxf4 {[%clk 0:01:09]}  h4 {[%clk 0:00:04]} 32. Ra5 {[%clk 0:01:06]}  g6 {[%clk 0:00:03]} 33. Ra7+ {[%clk 0:01:05]}  Re7 {[%clk 0:00:03]} 34. Qe3 {[%clk 0:01:01]}  Qd6+ {[%clk 0:00:00]} 35. f4 {[%clk 0:01:00]} 1-0


[Site "https://www.chess.com"]

[Event "Titled Tuesday Blitz August 08 Early 2023"]
[White "Bilan, Danila"]
[Black "Gu, Xiaobing"]
[WhiteFideId "24161918"]
[BlackFideId "8602611"]
[WhiteElo "2583"]
[BlackElo "2389"]
[Result "1-0"]
[Round "8"]
[TimeControl "180+1"]
[Date "2023.08.08"]
[WhiteClock "0:00:07"]
[BlackClock "0:00:05"]
[Board "128"]

1. d4 {[%clk 0:02:53]}  Nf6 {[%clk 0:02:59]} 2. Nf3 {[%clk 0:02:52]}  g6 {[%clk 0:02:59]} 3. Bg5 {[%clk 0:02:51]}  Bg7 {[%clk 0:02:59]} 4. c3 {[%clk 0:02:52]}  d6 {[%clk 0:02:53]} 5. Nbd2 {[%clk 0:02:52]}  c5 {[%clk 0:02:40]} 6. e3 {[%clk 0:02:52]}  Nc6 {[%clk 0:02:37]} 7. Bd3 {[%clk 0:02:48]}  O-O {[%clk 0:02:28]} 8. O-O {[%clk 0:02:47]}  e5 {[%clk 0:02:24]} 9. dxe5 {[%clk 0:02:37]}  dxe5 {[%clk 0:02:22]} 10. Ne4 {[%clk 0:02:37]}  Bf5 {[%clk 0:02:10]} 11. Nxf6+ {[%clk 0:01:27]}  Bxf6 {[%clk 0:02:09]} 12. Bxf5 {[%clk 0:01:27]}  gxf5 {[%clk 0:01:50]} 13. Bxf6 {[%clk 0:01:21]}  Qxf6 {[%clk 0:01:49]} 14. Qd5 {[%clk 0:01:21]}  e4 {[%clk 0:01:45]} 15. Ne1 {[%clk 0:01:13]}  b6 {[%clk 0:01:44]} 16. f3 {[%clk 0:00:47]}  Rad8 {[%clk 0:01:37]} 17. Qc4 {[%clk 0:00:42]}  Ne5 {[%clk 0:01:36]} 18. Qe2 {[%clk 0:00:38]}  Qh6 {[%clk 0:01:14]} 19. fxe4 {[%clk 0:00:33]}  Ng4 {[%clk 0:01:05]} 20. h3 {[%clk 0:00:29]}  Nxe3 {[%clk 0:01:01]} 21. Rf3 {[%clk 0:00:23]}  f4 {[%clk 0:00:53]} 22. Nd3 {[%clk 0:00:21]}  Rfe8 {[%clk 0:00:49]} 23. Nxf4 {[%clk 0:00:15]}  Rxe4 {[%clk 0:00:48]} 24. Rg3+ {[%clk 0:00:08]}  Kf8 {[%clk 0:00:36]} 25. Rxe3 {[%clk 0:00:08]}  Rxf4 {[%clk 0:00:34]} 26. Re1 {[%clk 0:00:08]}  Qg5 {[%clk 0:00:17]} 27. Kh2 {[%clk 0:00:07]}  Rf6 {[%clk 0:00:11]} 28. Rg3 {[%clk 0:00:07]}  Qf4 {[%clk 0:00:05]} 29. Qe7# {[%clk 0:00:07]} 1-0


[Site "https://www.chess.com"]

[Event "Titled Tuesday Blitz August 08 Early 2023"]
[White "Zavgorodniy, Sergiy"]
[Black "Polaczek, Richard"]
[WhiteFideId "14110148"]
[BlackFideId "200026"]
[WhiteElo "2577"]
[BlackElo "2387"]
[Result "1-0"]
[Round "8"]
[TimeControl "180+1"]
[Date "2023.08.08"]
[WhiteClock "0:01:31"]
[BlackClock "0:00:14"]
[Board "129"]

1. d4 {[%clk 0:03:00]}  Nf6 {[%clk 0:02:59]} 2. c4 {[%clk 0:03:00]}  e6 {[%clk 0:02:59]} 3. Nf3 {[%clk 0:03:00]}  d5 {[%clk 0:02:58]} 4. e3 {[%clk 0:03:00]}  a6 {[%clk 0:02:55]} 5. Nbd2 {[%clk 0:03:00]}  c5 {[%clk 0:02:52]} 6. dxc5 {[%clk 0:03:00]}  Bxc5 {[%clk 0:02:51]} 7. a3 {[%clk 0:03:00]}  O-O {[%clk 0:02:50]} 8. b4 {[%clk 0:02:59]}  Be7 {[%clk 0:02:50]} 9. Bb2 {[%clk 0:02:58]}  Nc6 {[%clk 0:02:47]} 10. Be2 {[%clk 0:02:56]}  b6 {[%clk 0:02:44]} 11. Rc1 {[%clk 0:02:55]}  Bb7 {[%clk 0:02:44]} 12. O-O {[%clk 0:02:55]}  Rc8 {[%clk 0:02:42]} 13. Qb3 {[%clk 0:02:53]}  dxc4 {[%clk 0:02:25]} 14. Bxc4 {[%clk 0:02:53]}  b5 {[%clk 0:02:25]} 15. Be2 {[%clk 0:02:52]}  Nb8 {[%clk 0:02:12]} 16. Rxc8 {[%clk 0:02:47]}  Qxc8 {[%clk 0:02:09]} 17. Rc1 {[%clk 0:02:46]}  Qd8 {[%clk 0:02:10]} 18. h3 {[%clk 0:02:41]}  Bd5 {[%clk 0:02:07]} 19. Qc2 {[%clk 0:02:37]}  Nbd7 {[%clk 0:01:49]} 20. Nd4 {[%clk 0:02:33]}  Bd6 {[%clk 0:01:16]} 21. Bf3 {[%clk 0:02:31]}  Ne5 {[%clk 0:01:02]} 22. Bxd5 {[%clk 0:02:30]}  Nxd5 {[%clk 0:01:01]} 23. Nc6 {[%clk 0:02:28]}  Nxc6 {[%clk 0:00:59]} 24. Qxc6 {[%clk 0:02:29]}  Bb8 {[%clk 0:00:47]} 25. Nf3 {[%clk 0:02:15]}  Nb6 {[%clk 0:00:40]} 26. Bd4 {[%clk 0:02:12]}  Nc4 {[%clk 0:00:35]} 27. Qxa6 {[%clk 0:02:11]}  Qc8 {[%clk 0:00:32]} 28. Qxb5 {[%clk 0:02:07]}  Nxa3 {[%clk 0:00:30]} 29. Qf1 {[%clk 0:01:52]}  Qb7 {[%clk 0:00:28]} 30. Qd3 {[%clk 0:01:49]}  Nb5 {[%clk 0:00:26]} 31. Ng5 {[%clk 0:01:47]}  g6 {[%clk 0:00:23]} 32. Ba1 {[%clk 0:01:45]}  Rc8 {[%clk 0:00:20]} 33. Rd1 {[%clk 0:01:37]}  e5 {[%clk 0:00:18]} 34. Ne4 {[%clk 0:01:32]}  Qe7 {[%clk 0:00:14]} 35. Qxb5 {[%clk 0:01:31]} 1-0


[Site "https://www.chess.com"]

[Event "Titled Tuesday Blitz August 08 Early 2023"]
[White "Eynullayev, Altay"]
[Black "Gueci, Tea"]
[WhiteFideId "13413562"]
[BlackFideId "872342"]
[WhiteElo "2567"]
[BlackElo "2382"]
[Result "1/2-1/2"]
[Round "8"]
[TimeControl "180+1"]
[Date "2023.08.08"]
[WhiteClock "0:00:23"]
[BlackClock "0:00:15"]
[Board "132"]

1. e4 {[%clk 0:03:00]}  e6 {[%clk 0:02:59]} 2. d4 {[%clk 0:02:56]}  d5 {[%clk 0:03:00]} 3. e5 {[%clk 0:02:56]}  c5 {[%clk 0:02:58]} 4. c3 {[%clk 0:02:56]}  Nc6 {[%clk 0:02:59]} 5. Nf3 {[%clk 0:02:57]}  Qb6 {[%clk 0:02:56]} 6. a3 {[%clk 0:02:57]}  a5 {[%clk 0:02:30]} 7. Bd3 {[%clk 0:02:51]}  Nge7 {[%clk 0:02:12]} 8. O-O {[%clk 0:02:51]}  Ng6 {[%clk 0:02:08]} 9. h4 {[%clk 0:02:47]}  Be7 {[%clk 0:02:01]} 10. h5 {[%clk 0:02:47]}  Nh4 {[%clk 0:02:02]} 11. Nxh4 {[%clk 0:02:47]}  Bxh4 {[%clk 0:02:03]} 12. Qg4 {[%clk 0:02:47]}  Be7 {[%clk 0:01:51]} 13. Qxg7 {[%clk 0:02:47]}  Rf8 {[%clk 0:01:50]} 14. dxc5 {[%clk 0:02:40]}  Qxc5 {[%clk 0:01:39]} 15. Be3 {[%clk 0:02:39]}  d4 {[%clk 0:01:36]} 16. cxd4 {[%clk 0:02:39]}  Nxd4 {[%clk 0:01:33]} 17. Nc3 {[%clk 0:02:33]}  Bd7 {[%clk 0:01:06]} 18. Ne4 {[%clk 0:02:31]}  Qd5 {[%clk 0:00:58]} 19. Nf6+ {[%clk 0:02:28]}  Bxf6 {[%clk 0:00:56]} 20. Qxf6 {[%clk 0:02:27]}  Bc6 {[%clk 0:00:53]} 21. f3 {[%clk 0:02:26]}  Rg8 {[%clk 0:00:48]} 22. Be4 {[%clk 0:02:22]}  Ne2+ {[%clk 0:00:42]} 23. Kf2 {[%clk 0:02:17]}  Qb5 {[%clk 0:00:34]} 24. a4 {[%clk 0:02:09]}  Qxb2 {[%clk 0:00:29]} 25. Rfb1 {[%clk 0:01:50]}  Qc3 {[%clk 0:00:22]} 26. Bxc6+ {[%clk 0:01:47]}  bxc6 {[%clk 0:00:23]} 27. Kxe2 {[%clk 0:01:35]}  Qc4+ {[%clk 0:00:16]} 28. Ke1 {[%clk 0:01:31]}  Rxg2 {[%clk 0:00:14]} 29. Rb8+ {[%clk 0:00:29]}  Rxb8 {[%clk 0:00:14]} 30. Qh8+ {[%clk 0:00:29]}  Ke7 {[%clk 0:00:14]} 31. Qf6+ {[%clk 0:00:28]}  Ke8 {[%clk 0:00:14]} 32. Qh8+ {[%clk 0:00:28]}  Ke7 {[%clk 0:00:15]} 33. Qf6+ {[%clk 0:00:23]}  Ke8 {[%clk 0:00:15]} 1/2-1/2


[Site "https://www.chess.com"]

[Event "Titled Tuesday Blitz August 08 Early 2023"]
[White "Czerw, Dawid"]
[Black "Luong Phuong Hanh"]
[WhiteFideId "1145746"]
[BlackFideId "12401013"]
[WhiteElo "2556"]
[BlackElo "2380"]
[Result "0-1"]
[Round "8"]
[TimeControl "180+1"]
[Date "2023.08.08"]
[WhiteClock "0:00:17"]
[BlackClock "0:01:21"]
[Board "133"]

1. e4 {[%clk 0:03:00]}  c5 {[%clk 0:02:57]} 2. Nf3 {[%clk 0:03:01]}  e6 {[%clk 0:02:57]} 3. d4 {[%clk 0:03:01]}  cxd4 {[%clk 0:02:58]} 4. Nxd4 {[%clk 0:03:02]}  a6 {[%clk 0:02:59]} 5. a4 {[%clk 0:03:01]}  Nf6 {[%clk 0:02:56]} 6. Nc3 {[%clk 0:03:01]}  d6 {[%clk 0:02:52]} 7. Be3 {[%clk 0:03:00]}  Nbd7 {[%clk 0:02:53]} 8. Bd3 {[%clk 0:02:59]}  Be7 {[%clk 0:02:53]} 9. O-O {[%clk 0:02:59]}  O-O {[%clk 0:02:53]} 10. f4 {[%clk 0:03:00]}  Qc7 {[%clk 0:02:52]} 11. Qf3 {[%clk 0:02:59]}  b6 {[%clk 0:02:51]} 12. Rae1 {[%clk 0:02:59]}  Bb7 {[%clk 0:02:51]} 13. Qg3 {[%clk 0:02:53]}  Kh8 {[%clk 0:02:40]} 14. Qh3 {[%clk 0:02:43]}  Nc5 {[%clk 0:02:30]} 15. Bd2 {[%clk 0:02:32]}  Nxd3 {[%clk 0:02:25]} 16. cxd3 {[%clk 0:02:33]}  Nd7 {[%clk 0:02:19]} 17. Nf3 {[%clk 0:02:22]}  Bf6 {[%clk 0:02:15]} 18. g4 {[%clk 0:02:07]}  g6 {[%clk 0:02:08]} 19. g5 {[%clk 0:02:05]}  Bg7 {[%clk 0:02:09]} 20. f5 {[%clk 0:02:01]}  exf5 {[%clk 0:02:07]} 21. exf5 {[%clk 0:02:01]}  Qc5+ {[%clk 0:01:53]} 22. d4 {[%clk 0:01:36]}  Qxf5 {[%clk 0:01:51]} 23. Qxf5 {[%clk 0:01:36]}  gxf5 {[%clk 0:01:52]} 24. Re7 {[%clk 0:01:36]}  Bxf3 {[%clk 0:01:49]} 25. Rxf3 {[%clk 0:01:32]}  Bxd4+ {[%clk 0:01:49]} 26. Kg2 {[%clk 0:01:27]}  Ne5 {[%clk 0:01:48]} 27. Rxf5 {[%clk 0:01:21]}  Rae8 {[%clk 0:01:42]} 28. Rb7 {[%clk 0:01:14]}  Kg7 {[%clk 0:01:40]} 29. Nd5 {[%clk 0:01:09]}  Bxb2 {[%clk 0:01:31]} 30. Bb4 {[%clk 0:00:26]}  Kg6 {[%clk 0:01:22]} 31. Rfxf7 {[%clk 0:00:17]}  Rxf7 {[%clk 0:01:21]} 0-1


[Site "https://www.chess.com"]

[Event "Titled Tuesday Blitz August 08 Early 2023"]
[White "FoxOnTheRun97"]
[Black "Korpics, Zsolt"]
[BlackFideId "705241"]
[WhiteElo "2551"]
[BlackElo "2361"]
[Result "1/2-1/2"]
[Round "8"]
[TimeControl "180+1"]
[Date "2023.08.08"]
[WhiteClock "0:00:22"]
[BlackClock "0:00:07"]
[Board "134"]

1. d4 {[%clk 0:03:00]}  Nf6 {[%clk 0:02:59]} 2. Bg5 {[%clk 0:03:00]}  Ne4 {[%clk 0:02:58]} 3. h4 {[%clk 0:03:00]}  c5 {[%clk 0:02:37]} 4. d5 {[%clk 0:02:57]}  g6 {[%clk 0:02:25]} 5. Nd2 {[%clk 0:02:56]}  Nxg5 {[%clk 0:02:20]} 6. hxg5 {[%clk 0:02:57]}  e5 {[%clk 0:02:16]} 7. dxe6 {[%clk 0:02:52]}  fxe6 {[%clk 0:02:03]} 8. Ngf3 {[%clk 0:02:20]}  d5 {[%clk 0:01:58]} 9. e4 {[%clk 0:02:19]}  Nc6 {[%clk 0:01:44]} 10. exd5 {[%clk 0:02:06]}  exd5 {[%clk 0:01:42]} 11. Qe2+ {[%clk 0:02:06]}  Qe7 {[%clk 0:01:40]} 12. O-O-O {[%clk 0:02:04]}  Qxe2 {[%clk 0:01:32]} 13. Bxe2 {[%clk 0:02:05]}  Bg7 {[%clk 0:01:30]} 14. Nb3 {[%clk 0:01:59]}  c4 {[%clk 0:01:30]} 15. Nbd4 {[%clk 0:01:54]}  Bd7 {[%clk 0:01:22]} 16. Nxc6 {[%clk 0:01:51]}  bxc6 {[%clk 0:01:19]} 17. Nd4 {[%clk 0:01:44]}  Rb8 {[%clk 0:01:12]} 18. c3 {[%clk 0:01:34]}  O-O {[%clk 0:01:10]} 19. Bf3 {[%clk 0:01:33]}  Bf5 {[%clk 0:00:47]} 20. Nxc6 {[%clk 0:01:28]}  Rb6 {[%clk 0:00:20]} 21. Ne7+ {[%clk 0:01:24]}  Kh8 {[%clk 0:00:20]} 22. Nxf5 {[%clk 0:01:17]}  Rxf5 {[%clk 0:00:19]} 23. Rxd5 {[%clk 0:01:16]}  Rxd5 {[%clk 0:00:16]} 24. Bxd5 {[%clk 0:01:17]}  Rb5 {[%clk 0:00:15]} 25. Bxc4 {[%clk 0:01:17]}  Rxg5 {[%clk 0:00:16]} 26. g3 {[%clk 0:01:16]}  Rf5 {[%clk 0:00:15]} 27. f4 {[%clk 0:01:15]}  Rc5 {[%clk 0:00:14]} 28. Bd3 {[%clk 0:01:15]}  Kg8 {[%clk 0:00:12]} 29. Kc2 {[%clk 0:01:14]}  Bf6 {[%clk 0:00:10]} 30. Re1 {[%clk 0:01:13]}  Kf7 {[%clk 0:00:10]} 31. Re4 {[%clk 0:01:13]}  h5 {[%clk 0:00:11]} 32. Bc4+ {[%clk 0:01:13]}  Kf8 {[%clk 0:00:10]} 33. b4 {[%clk 0:01:12]}  Rc7 {[%clk 0:00:08]} 34. Kb3 {[%clk 0:01:11]}  h4 {[%clk 0:00:08]} 35. gxh4 {[%clk 0:01:10]}  Bxh4 {[%clk 0:00:09]} 36. Bd5 {[%clk 0:01:01]}  Re7 {[%clk 0:00:07]} 37. c4 {[%clk 0:00:54]}  Rxe4 {[%clk 0:00:07]} 38. Bxe4 {[%clk 0:00:55]}  Bg3 {[%clk 0:00:08]} 39. Bxg6 {[%clk 0:00:53]}  Bxf4 {[%clk 0:00:08]} 40. Ka4 {[%clk 0:00:53]}  Ke7 {[%clk 0:00:09]} 41. Kb5 {[%clk 0:00:53]}  Kd7 {[%clk 0:00:08]} 42. Ka6 {[%clk 0:00:48]}  Be3 {[%clk 0:00:05]} 43. c5 {[%clk 0:00:43]}  Bd2 {[%clk 0:00:04]} 44. b5 {[%clk 0:00:42]}  Be3 {[%clk 0:00:03]} 45. Bf5+ {[%clk 0:00:39]}  Kc7 {[%clk 0:00:03]} 46. c6 {[%clk 0:00:34]}  Bb6 {[%clk 0:00:03]} 47. a4 {[%clk 0:00:31]}  Bd4 {[%clk 0:00:04]} 48. Be4 {[%clk 0:00:30]}  Be3 {[%clk 0:00:04]} 49. Bd3 {[%clk 0:00:30]}  Bd4 {[%clk 0:00:04]} 50. Ka5 {[%clk 0:00:28]}  Be3 {[%clk 0:00:05]} 51. Kb4 {[%clk 0:00:28]}  Bd4 {[%clk 0:00:05]} 52. Kc4 {[%clk 0:00:28]}  Be3 {[%clk 0:00:06]} 53. a5 {[%clk 0:00:28]}  Bf2 {[%clk 0:00:06]} 54. Be4 {[%clk 0:00:27]}  Be3 {[%clk 0:00:06]} 55. Kd5 {[%clk 0:00:27]}  Bd2 {[%clk 0:00:06]} 56. a6 {[%clk 0:00:26]}  Ba5 {[%clk 0:00:06]} 57. Ke6 {[%clk 0:00:25]}  Bb6 {[%clk 0:00:07]} 58. Bd5 {[%clk 0:00:25]}  Ba5 {[%clk 0:00:07]} 59. Bc4 {[%clk 0:00:25]}  Bb6 {[%clk 0:00:07]} 60. Bd3 {[%clk 0:00:22]} 1/2-1/2


[Site "https://www.chess.com"]

[Event "Titled Tuesday Blitz August 08 Early 2023"]
[White "Topalov, Aleksandar"]
[Black "Do Nascimento,Christian Almeida"]
[WhiteFideId "925659"]
[BlackFideId "2143801"]
[WhiteElo "2356"]
[BlackElo "2542"]
[Result "1-0"]
[Round "8"]
[TimeControl "180+1"]
[Date "2023.08.08"]
[WhiteClock "0:00:18"]
[BlackClock "0:00:04"]
[Board "135"]

1. b3 {[%clk 0:02:58]}  Nf6 {[%clk 0:02:52]} 2. Bb2 {[%clk 0:02:57]}  g6 {[%clk 0:02:52]} 3. Bxf6 {[%clk 0:02:56]}  exf6 {[%clk 0:02:52]} 4. c4 {[%clk 0:02:56]}  Bg7 {[%clk 0:02:52]} 5. Nc3 {[%clk 0:02:57]}  O-O {[%clk 0:02:53]} 6. e3 {[%clk 0:02:57]}  f5 {[%clk 0:02:52]} 7. Nge2 {[%clk 0:02:57]}  d6 {[%clk 0:02:51]} 8. g3 {[%clk 0:02:58]}  Nd7 {[%clk 0:02:50]} 9. Bg2 {[%clk 0:02:58]}  Nf6 {[%clk 0:02:51]} 10. O-O {[%clk 0:02:58]}  Re8 {[%clk 0:02:51]} 11. d3 {[%clk 0:02:55]}  c6 {[%clk 0:02:51]} 12. Rb1 {[%clk 0:02:55]}  Qe7 {[%clk 0:02:51]} 13. b4 {[%clk 0:02:54]}  Bd7 {[%clk 0:02:47]} 14. b5 {[%clk 0:02:54]}  Rab8 {[%clk 0:02:47]} 15. a4 {[%clk 0:02:52]}  c5 {[%clk 0:02:47]} 16. a5 {[%clk 0:02:46]}  b6 {[%clk 0:02:47]} 17. axb6 {[%clk 0:02:44]}  axb6 {[%clk 0:02:47]} 18. Ra1 {[%clk 0:02:44]}  Be6 {[%clk 0:02:47]} 19. Ra6 {[%clk 0:02:42]}  Red8 {[%clk 0:02:45]} 20. Nf4 {[%clk 0:02:40]}  Bc8 {[%clk 0:02:43]} 21. Nfd5 {[%clk 0:02:35]}  Qe8 {[%clk 0:02:25]} 22. Rxb6 {[%clk 0:02:28]}  Rxb6 {[%clk 0:02:09]} 23. Nxb6 {[%clk 0:02:27]}  Be6 {[%clk 0:02:06]} 24. Nbd5 {[%clk 0:02:22]}  Nxd5 {[%clk 0:02:02]} 25. Nxd5 {[%clk 0:02:22]}  Ra8 {[%clk 0:01:56]} 26. Ne7+ {[%clk 0:02:12]}  Kh8 {[%clk 0:01:56]} 27. Bxa8 {[%clk 0:02:11]}  Qxa8 {[%clk 0:01:57]} 28. Nc6 {[%clk 0:02:05]}  d5 {[%clk 0:01:53]} 29. Qc2 {[%clk 0:02:00]}  h5 {[%clk 0:01:51]} 30. h4 {[%clk 0:01:56]}  Bf6 {[%clk 0:01:51]} 31. cxd5 {[%clk 0:01:50]}  Bxd5 {[%clk 0:01:50]} 32. Qxc5 {[%clk 0:01:49]}  Bf3 {[%clk 0:01:49]} 33. Rc1 {[%clk 0:01:44]}  f4 {[%clk 0:01:36]} 34. exf4 {[%clk 0:01:42]}  Kg7 {[%clk 0:01:28]} 35. b6 {[%clk 0:01:39]}  Bxh4 {[%clk 0:01:16]} 36. Na5 {[%clk 0:01:10]}  Bf6 {[%clk 0:00:58]} 37. b7 {[%clk 0:01:07]}  Bxb7 {[%clk 0:00:53]} 38. Nxb7 {[%clk 0:01:07]}  Qxb7 {[%clk 0:00:54]} 39. d4 {[%clk 0:01:01]}  h4 {[%clk 0:00:54]} 40. g4 {[%clk 0:00:57]}  Qf3 {[%clk 0:00:53]} 41. g5 {[%clk 0:00:52]}  Qg4+ {[%clk 0:00:39]} 42. Kf1 {[%clk 0:00:47]}  Qh3+ {[%clk 0:00:40]} 43. Ke2 {[%clk 0:00:43]}  Qg4+ {[%clk 0:00:39]} 44. Ke3 {[%clk 0:00:36]}  Qe6+ {[%clk 0:00:39]} 45. Kd2 {[%clk 0:00:31]}  Be7 {[%clk 0:00:18]} 46. Qe5+ {[%clk 0:00:31]}  Qxe5 {[%clk 0:00:18]} 47. dxe5 {[%clk 0:00:31]}  Bb4+ {[%clk 0:00:14]} 48. Ke2 {[%clk 0:00:30]}  Ba3 {[%clk 0:00:13]} 49. Rh1 {[%clk 0:00:29]}  Kf8 {[%clk 0:00:11]} 50. Rxh4 {[%clk 0:00:29]}  Bc1 {[%clk 0:00:12]} 51. Kd3 {[%clk 0:00:27]}  Ke7 {[%clk 0:00:11]} 52. Ke4 {[%clk 0:00:28]}  Ke6 {[%clk 0:00:11]} 53. Rh6 {[%clk 0:00:26]}  Ke7 {[%clk 0:00:10]} 54. Rh1 {[%clk 0:00:22]}  Bd2 {[%clk 0:00:08]} 55. Rd1 {[%clk 0:00:21]}  Bb4 {[%clk 0:00:08]} 56. f5 {[%clk 0:00:21]}  gxf5+ {[%clk 0:00:06]} 57. Kxf5 {[%clk 0:00:21]}  Bc3 {[%clk 0:00:07]} 58. f4 {[%clk 0:00:21]}  Bb2 {[%clk 0:00:07]} 59. Rb1 {[%clk 0:00:19]}  Bc3 {[%clk 0:00:06]} 60. Rb7+ {[%clk 0:00:19]}  Kf8 {[%clk 0:00:04]} 61. Kf6 {[%clk 0:00:18]} 1-0


[Site "https://www.chess.com"]

[Event "Titled Tuesday Blitz August 08 Early 2023"]
[White "Hoffmann, Asa"]
[Black "Unat, Can Haktan"]
[WhiteFideId "2001470"]
[BlackFideId "6398073"]
[WhiteElo "2356"]
[BlackElo "2531"]
[Result "0-1"]
[Round "8"]
[TimeControl "180+1"]
[Date "2023.08.08"]
[WhiteClock "0:00:02"]
[BlackClock "0:00:34"]
[Board "136"]

1. d4 {[%clk 0:02:56]}  c6 {[%clk 0:02:54]} 2. Bg5 {[%clk 0:02:55]}  d5 {[%clk 0:02:55]} 3. e3 {[%clk 0:02:53]}  Nf6 {[%clk 0:02:56]} 4. Bd3 {[%clk 0:02:53]}  e6 {[%clk 0:02:55]} 5. Nd2 {[%clk 0:02:53]}  Bd6 {[%clk 0:02:55]} 6. f4 {[%clk 0:02:53]}  h6 {[%clk 0:02:55]} 7. Bh4 {[%clk 0:02:52]}  g5 {[%clk 0:02:54]} 8. fxg5 {[%clk 0:02:50]}  Ne4 {[%clk 0:02:53]} 9. Bxe4 {[%clk 0:02:37]}  dxe4 {[%clk 0:02:54]} 10. Qh5 {[%clk 0:02:24]}  Be7 {[%clk 0:02:35]} 11. Nh3 {[%clk 0:02:08]}  e5 {[%clk 0:02:22]} 12. O-O {[%clk 0:02:03]}  Be6 {[%clk 0:02:20]} 13. Nxe4 {[%clk 0:01:50]}  Qd5 {[%clk 0:02:10]} 14. Nc3 {[%clk 0:01:40]}  Qc4 {[%clk 0:01:59]} 15. Rad1 {[%clk 0:01:23]}  Nd7 {[%clk 0:01:58]} 16. g6 {[%clk 0:01:03]}  fxg6 {[%clk 0:01:48]} 17. Qxg6+ {[%clk 0:00:59]}  Bf7 {[%clk 0:01:48]} 18. Qe4 {[%clk 0:00:50]}  Bxh4 {[%clk 0:01:22]} 19. Qxh4 {[%clk 0:00:49]}  Rg8 {[%clk 0:01:23]} 20. Rf2 {[%clk 0:00:45]}  Qe6 {[%clk 0:01:15]} 21. Rdf1 {[%clk 0:00:43]}  Rg4 {[%clk 0:01:08]} 22. d5 {[%clk 0:00:34]}  cxd5 {[%clk 0:00:49]} 23. Qxg4 {[%clk 0:00:29]}  Qxg4 {[%clk 0:00:50]} 24. Rxf7 {[%clk 0:00:28]}  O-O-O {[%clk 0:00:49]} 25. Nxd5 {[%clk 0:00:28]}  Qe4 {[%clk 0:00:42]} 26. c4 {[%clk 0:00:22]}  Nb6 {[%clk 0:00:37]} 27. Nxb6+ {[%clk 0:00:20]}  axb6 {[%clk 0:00:38]} 28. R7f3 {[%clk 0:00:16]}  Kb8 {[%clk 0:00:33]} 29. Nf2 {[%clk 0:00:16]}  Qxc4 {[%clk 0:00:34]} 30. h3 {[%clk 0:00:15]}  Rg8 {[%clk 0:00:34]} 31. Kh2 {[%clk 0:00:02]}  Qxf1 {[%clk 0:00:34]} 0-1


[Site "https://www.chess.com"]